fUSD/lending_fUSD_20260620
["ID","MTS","AMOUNT","RATE_DAILY","PERIOD"]
[425794552,1781898645000,-155.80683752,0.00030115,2]
[425794549,1781898645000,-214.37,0.000301,2]
[425794558,1781898645000,-233.5188934,0.00030115,2]
[425794554,1781898645000,-151.0,0.00030115,2]
[425794551,1781898645000,-233.5188934,0.00030115,2]
[425794556,1781898645000,-233.5188934,0.00030115,2]
[425794550,1781898645000,-1142.0,0.000301,7]
[425794560,1781898645000,-151.0,0.00030115,2]
[425794559,1781898645000,-781.33996109,0.00030115,2]
[425794561,1781898645000,-792.21005374,0.0003012,2]
[425794509,1781898645000,-200.0,0.00029886,2]
[425794562,1781898645000,-192.94070007,0.00030129,2]
[425794557,1781898645000,-233.5188934,0.00030115,2]
[425794535,1781898645000,-14086.67934133,0.00029942,2]
[425794548,1781898645000,-208.0,0.00030037,2]
[425794536,1781898645000,-3724.06826545,0.0003,2]
[425794537,1781898645000,-4054.59332441,0.0003,2]
[425794511,1781898645000,-3560.0,0.00029919,2]
[425794512,1781898645000,-383.0,0.00029919,2]
[425794514,1781898645000,-1276.0,0.00029919,2]
[425794513,1781898645000,-1360.0,0.00029919,2]
[425794515,1781898645000,-1229.0,0.00029919,2]
[425794516,1781898645000,-250.0,0.00029919,2]
[425794517,1781898645000,-934.0,0.00029919,2]
[425794518,1781898645000,-6081.0,0.00029919,2]
[425794522,1781898645000,-406.0,0.00029932,30]
[425794521,1781898645000,-155.0,0.00029932,30]
[425794520,1781898645000,-151.0,0.00029932,30]
[425794510,1781898645000,-200.0,0.00029887,2]
[425794524,1781898645000,-159.0,0.00029932,30]
[425794528,1781898645000,-162.0,0.00029934,30]
[425794532,1781898645000,-163.0,0.00029934,30]
[425794533,1781898645000,-350.0,0.00029937,2]
[425794531,1781898645000,-339.0,0.00029934,30]
[425794530,1781898645000,-154.0,0.00029934,30]
[425794534,1781898645000,-267.83,0.00029938,2]
[425794527,1781898645000,-156.0,0.00029932,30]
[425794523,1781898645000,-485.0,0.00029932,30]
[425794526,1781898645000,-314.0,0.00029932,30]
[425794525,1781898645000,-158.0,0.00029932,30]
[425794529,1781898645000,-337.0,0.00029934,30]
[425794602,1781898646000,-2000.0,0.000302,2]
[425794589,1781898646000,-500.0,0.00030137,3]
[425794588,1781898646000,-500.0,0.00030137,3]
[425794594,1781898646000,-930.08426449,0.00030137,120]
[425794596,1781898646000,-930.00021066,0.00030137,120]
[425794595,1781898646000,-930.00421322,0.00030137,120]
[425794597,1781898646000,-930.00001053,0.00030137,120]
[425794592,1781898646000,-963.70579635,0.00030137,120]
[425794598,1781898646000,-1078.53605435,0.00030137,120]
[425794600,1781898646000,-152.0,0.00030155,120]
[425794603,1781898646000,-1111.11,0.000302,30]
[425794607,1781898646000,-250.0,0.00030292,7]
[425794601,1781898646000,-169.13,0.000302,7]
[425794604,1781898646000,-13573.48486708,0.00030237,2]
[425794605,1781898646000,-298.2,0.00030239,2]
[425794609,1781898646000,-273.0,0.00030292,2]
[425794610,1781898646000,-273.0,0.00030292,2]
[425794612,1781898646000,-273.0,0.00030292,2]
[425794611,1781898646000,-273.0,0.00030292,2]
[425794613,1781898646000,-3724.06826545,0.000303,2]
[425794614,1781898646000,-4054.59332441,0.000303,2]
[425794616,1781898646000,-10091.90896854,0.000303,2]
[425794585,1781898646000,-500.0,0.00030137,3]
[425794599,1781898646000,-200.0,0.00030137,2]
[425794587,1781898646000,-1977.0,0.00030137,120]
[425794615,1781898646000,-1466.84174639,0.000303,2]
[425794593,1781898646000,-931.68528982,0.00030137,120]
[425794566,1781898646000,-500.0,0.00030129,7]
[425794568,1781898646000,-500.0,0.00030129,7]
[425794569,1781898646000,-500.0,0.00030129,7]
[425794570,1781898646000,-500.0,0.00030129,7]
[425794567,1781898646000,-500.0,0.00030129,7]
[425794565,1781898646000,-500.0,0.00030129,7]
[425794564,1781898646000,-500.0,0.00030129,7]
[425794571,1781898646000,-150.0,0.00030129,20]
[425794573,1781898646000,-5040.00889834,0.0003013,2]
[425794572,1781898646000,-1311879.21672709,0.0003013,7]
[425794574,1781898646000,-42732.11894248,0.0003013,2]
[425794575,1781898646000,-265417.30375574,0.0003013,7]
[425794576,1781898646000,-803.3969834,0.0003013,2]
[425794580,1781898646000,-200.0,0.00030136,2]
[425794579,1781898646000,-168.70021613,0.00030136,30]
[425794581,1781898646000,-150.0,0.00030137,2]
[425794577,1781898646000,-979.3522073,0.0003013,2]
[425794578,1781898646000,-637.69700445,0.00030135,2]
[425794582,1781898646000,-356.02559764,0.00030137,2]
[425794586,1781898646000,-500.0,0.00030137,3]
[425794584,1781898646000,-500.0,0.00030137,3]
[425794591,1781898646000,-188.63223808,0.00030137,30]
[425794590,1781898646000,-250.0,0.00030137,12]
[425794583,1781898646000,-674.91,0.00030137,2]
[425794617,1781898646000,-169.25600802,0.000303,2]
[425794633,1781898646000,-534.0,0.00030583,2]
[425794620,1781898646000,-200.0,0.00030392,2]
[425794656,1781898646000,-242.15909246,0.00030663,2]
[425794657,1781898646000,-781.33996109,0.00030663,2]
[425794658,1781898646000,-151.0,0.00030663,2]
[425794659,1781898646000,-281.16702688,0.00030667,2]
[425794660,1781898646000,-523.58,0.00030671,7]
[425794662,1781898646000,-200.0,0.00030743,2]
[425794661,1781898646000,-150.0,0.00030685,30]
[425794666,1781898646000,-150.0,0.00030875,2]
[425794665,1781898646000,-150.0,0.00030875,2]
[425794618,1781898646000,-169.25600802,0.000303,2]
[425794664,1781898646000,-268.5999772,0.000308,2]
[425794667,1781898646000,-150.0,0.00030875,2]
[425794669,1781898646000,-169.13,0.000309,7]
[425794671,1781898646000,-3724.06826545,0.000309,2]
[425794668,1781898646000,-150.0,0.00030875,2]
[425794670,1781898646000,-600.0,0.000309,11]
[425794674,1781898646000,-10091.90896854,0.000309,2]
[425794672,1781898646000,-4054.59332441,0.000309,2]
[425794675,1781898646000,-173.42258978,0.000309,2]
[425794673,1781898646000,-1466.84174639,0.000309,2]
[425794677,1781898646000,-155.0,0.00030932,30]
[425794678,1781898646000,-406.0,0.00030932,30]
[425794676,1781898646000,-151.0,0.00030932,30]
[425794655,1781898646000,-242.15909246,0.00030663,2]
[425794653,1781898646000,-11046.30350254,0.00030663,2]
[425794663,1781898646000,-55897.57275488,0.000308,3]
[425794652,1781898646000,-151.0,0.00030663,2]
[425794654,1781898646000,-242.15909246,0.00030663,2]
[425794619,1781898646000,-151.0,0.00030389,2]
[425794627,1781898646000,-1556.0,0.00030576,10]
[425794622,1781898646000,-350.0,0.00030399,2]
[425794624,1781898646000,-200.0,0.00030438,2]
[425794623,1781898646000,-152.56,0.00030411,120]
[425794626,1781898646000,-633.49537877,0.00030498,2]
[425794630,1781898646000,-162.33888531,0.00030583,2]
[425794629,1781898646000,-236.0,0.00030582,2]
[425794628,1781898646000,-294.4833284,0.00030582,2]
[425794621,1781898646000,-363.0,0.00030393,2]
[425794625,1781898646000,-291.56576022,0.00030467,2]
[425794636,1781898646000,-534.0,0.00030583,2]
[425794634,1781898646000,-534.0,0.00030583,2]
[425794638,1781898646000,-350.0,0.00030592,2]
[425794644,1781898646000,-1466.84174639,0.000306,2]
[425794642,1781898646000,-4054.59332441,0.000306,2]
[425794640,1781898646000,-3724.06826545,0.000306,2]
[425794646,1781898646000,-10091.90896854,0.000306,2]
[425794648,1781898646000,-501.0,0.00030661,5]
[425794650,1781898646000,-155.80683752,0.00030663,2]
[425794649,1781898646000,-242.15909246,0.00030663,2]
[425794631,1781898646000,-534.0,0.00030583,2]
[425794651,1781898646000,-201.93286098,0.00030663,2]
[425794717,1781898647000,-1000.0,0.000312,7]
[425794715,1781898647000,-1466.84174639,0.000312,2]
[425794716,1781898647000,-10091.90896854,0.000312,2]
[425794714,1781898647000,-4054.59332441,0.000312,2]
[425794711,1781898647000,-1946.51010907,0.00031083,2]
[425794709,1781898647000,-192.19906713,0.0003105,2]
[425794713,1781898647000,-3724.06826545,0.000312,2]
[425794710,1781898647000,-464.593535,0.00031072,2]
[425794718,1781898647000,-599.60298507,0.0003121,2]
[425794712,1781898647000,-721.94454282,0.00031092,2]
[425794720,1781898647000,-200.18022165,0.00031211,2]
[425794731,1781898647000,-82942.43096089,0.000313,3]
[425794728,1781898647000,-781.33996109,0.00031211,2]
[425794723,1781898647000,-151.0,0.00031211,2]
[425794721,1781898647000,-155.80683752,0.00031211,2]
[425794729,1781898647000,-151.0,0.00031211,2]
[425794719,1781898647000,-747.80937859,0.0003121,2]
[425794722,1781898647000,-209.40437684,0.00031211,2]
[425794724,1781898647000,-4731.34784314,0.00031211,2]
[425794727,1781898647000,-200.18022165,0.00031211,2]
[425794726,1781898647000,-200.18022164,0.00031211,2]
[425794725,1781898647000,-251.11897888,0.00031211,2]
[425794733,1781898647000,-436.62,0.000313,7]
[425794702,1781898647000,-273.0,0.00031013,2]
[425794730,1781898647000,-371.14107545,0.00031274,2]
[425794701,1781898647000,-273.0,0.00031013,2]
[425794735,1781898647000,-534.0,0.00031312,2]
[425794698,1781898647000,-150.0,0.00031011,2]
[425794683,1781898647000,-156.0,0.00030932,30]
[425794686,1781898647000,-154.0,0.00030934,30]
[425794681,1781898647000,-158.0,0.00030932,30]
[425794684,1781898647000,-162.0,0.00030934,30]
[425794685,1781898647000,-337.0,0.00030934,30]
[425794680,1781898647000,-159.0,0.00030932,30]
[425794679,1781898647000,-485.0,0.00030932,30]
[425794682,1781898647000,-314.0,0.00030932,30]
[425794687,1781898647000,-339.0,0.00030934,30]
[425794689,1781898647000,-151.0,0.00030937,2]
[425794693,1781898647000,-88785.4200921,0.00030977,2]
[425794692,1781898647000,-382.71337687,0.00030973,2]
[425794700,1781898647000,-273.0,0.00031013,2]
[425794696,1781898647000,-160.0,0.00031,120]
[425794691,1781898647000,-276.45394621,0.00030941,2]
[425794688,1781898647000,-168.17282495,0.00030934,30]
[425794694,1781898647000,-156.0,0.00031,120]
[425794695,1781898647000,-10821.5095353,0.00031,2]
[425794697,1781898647000,-1824.30958,0.00031007,2]
[425794699,1781898647000,-273.0,0.00031013,2]
[425794708,1781898647000,-164.23,0.00031025,30]
[425794703,1781898647000,-273.0,0.00031013,2]
[425794704,1781898647000,-273.0,0.00031013,2]
[425794706,1781898647000,-273.0,0.00031013,2]
[425794705,1781898647000,-273.0,0.00031013,2]
[425794707,1781898647000,-376.7,0.00031025,30]
[425794690,1781898647000,-200.0,0.0003094,2]
[425794734,1781898647000,-534.0,0.00031312,2]
[425794760,1781898647000,-150.0,0.0003161,2]
[425794732,1781898647000,-548531.20354597,0.000313,2]
[425794768,1781898647000,-167.728,0.00031684,2]
[425794778,1781898647000,-273.0,0.00031735,2]
[425794767,1781898647000,-250.0,0.00031684,2]
[425794774,1781898647000,-273.0,0.00031735,2]
[425794772,1781898647000,-340.0,0.00031726,120]
[425794769,1781898647000,-150.0,0.00031684,2]
[425794771,1781898647000,-3401.37473955,0.00031685,7]
[425794770,1781898647000,-150.2,0.00031684,2]
[425794773,1781898647000,-273.0,0.00031735,2]
[425794775,1781898647000,-273.0,0.00031735,2]
[425794777,1781898647000,-273.0,0.00031735,2]
[425794776,1781898647000,-273.0,0.00031735,2]
[425794779,1781898647000,-273.0,0.00031735,2]
[425794782,1781898647000,-260.4103811,0.00031759,2]
[425794783,1781898647000,-781.33996109,0.00031759,2]
[425794780,1781898647000,-155.80683759,0.00031759,2]
[425794787,1781898647000,-2334.0,0.00031799,10]
[425794789,1781898647000,-436.62,0.000318,7]
[425794784,1781898647000,-151.0,0.00031759,2]
[425794786,1781898647000,-14086.67934133,0.00031771,2]
[425794788,1781898647000,-10091.90896854,0.000318,2]
[425794781,1781898647000,-217.15233878,0.00031759,2]
[425794785,1781898647000,-963.0,0.00031764,2]
[425794791,1781898647000,-351.492516,0.00031832,2]
[425794790,1781898647000,-352.761221,0.00031831,2]
[425794763,1781898647000,-175.097,0.00031684,2]
[425794764,1781898647000,-150.153,0.00031684,2]
[425794737,1781898647000,-534.0,0.00031312,2]
[425794761,1781898647000,-150.0,0.0003161,2]
[425794762,1781898647000,-150.0,0.00031684,2]
[425794736,1781898647000,-534.0,0.00031312,2]
[425794738,1781898647000,-534.0,0.00031312,2]
[425794739,1781898647000,-534.0,0.00031312,2]
[425794741,1781898647000,-534.0,0.00031312,2]
[425794740,1781898647000,-534.0,0.00031312,2]
[425794743,1781898647000,-151.65,0.00031325,2]
[425794751,1781898647000,-250.0,0.00031507,14]
[425794746,1781898647000,-269.33433498,0.00031405,30]
[425794752,1781898647000,-2589.58750507,0.00031551,7]
[425794742,1781898647000,-151.0,0.00031325,2]
[425794744,1781898647000,-232.01653607,0.00031374,2]
[425794745,1781898647000,-350.0,0.00031398,2]
[425794753,1781898647000,-169.13,0.000316,7]
[425794747,1781898647000,-200.0,0.00031488,2]
[425794758,1781898647000,-150.0,0.0003161,2]
[425794757,1781898647000,-150.0,0.0003161,2]
[425794765,1781898647000,-150.0,0.00031684,2]
[425794755,1781898647000,-150.0,0.0003161,2]
[425794766,1781898647000,-250.0,0.00031684,2]
[425794759,1781898647000,-150.0,0.0003161,2]
[425794754,1781898647000,-150.0,0.0003161,2]
[425794749,1781898647000,-637.69700445,0.00031504,2]
[425794750,1781898647000,-150.0,0.00031507,2]
[425794748,1781898647000,-10091.90896854,0.000315,2]
[425794756,1781898647000,-150.0,0.0003161,2]
[425794836,1781898648000,-150.0,0.00032345,2]
[425794837,1781898648000,-150.0,0.00032345,2]
[425794832,1781898648000,-270.0455652,0.00032307,2]
[425794827,1781898648000,-500.0,0.00032194,23]
[425794817,1781898648000,-151.0,0.00032117,2]
[425794823,1781898648000,-350.0,0.00032156,2]
[425794822,1781898648000,-151.0,0.00032147,2]
[425794821,1781898648000,-151.0,0.00032144,2]
[425794824,1781898648000,-350.0,0.00032168,2]
[425794828,1781898648000,-298.2,0.0003221,5]
[425794826,1781898648000,-500.0,0.00032194,23]
[425794830,1781898648000,-436.62,0.000323,7]
[425794839,1781898648000,-350.0,0.00032412,2]
[425794833,1781898648000,-781.33996109,0.00032307,2]
[425794835,1781898648000,-568.37,0.00032324,2]
[425794834,1781898648000,-151.0,0.00032307,2]
[425794831,1781898648000,-225.18697532,0.00032307,2]
[425794842,1781898648000,-192.59747893,0.00032427,2]
[425794843,1781898648000,-150.47460961,0.00032427,2]
[425794838,1781898648000,-10091.90896854,0.000324,2]
[425794841,1781898648000,-182.309558,0.00032427,2]
[425794847,1781898648000,-158.7562563,0.00032427,2]
[425794846,1781898648000,-186.01405471,0.00032427,2]
[425794845,1781898648000,-170.62734494,0.00032427,2]
[425794819,1781898648000,-151.0,0.00032144,2]
[425794829,1781898648000,-169.13,0.000323,7]
[425794816,1781898648000,-151.0,0.00032117,2]
[425794808,1781898648000,-800.0,0.00032,2]
[425794820,1781898648000,-151.0,0.00032144,2]
[425794844,1781898648000,-192.80416851,0.00032427,2]
[425794793,1781898648000,-185.82,0.0003187,10]
[425794794,1781898648000,-151.0,0.00031932,30]
[425794792,1781898648000,-501.0,0.00031836,7]
[425794795,1781898648000,-155.0,0.00031932,30]
[425794796,1781898648000,-406.0,0.00031932,30]
[425794797,1781898648000,-485.0,0.00031932,30]
[425794798,1781898648000,-159.0,0.00031932,30]
[425794800,1781898648000,-314.0,0.00031932,30]
[425794799,1781898648000,-158.0,0.00031932,30]
[425794801,1781898648000,-156.0,0.00031932,30]
[425794803,1781898648000,-337.0,0.00031934,30]
[425794805,1781898648000,-339.0,0.00031934,30]
[425794813,1781898648000,-13573.48486708,0.00032105,2]
[425794806,1781898648000,-1001.0,0.00031945,120]
[425794804,1781898648000,-154.0,0.00031934,30]
[425794809,1781898648000,-200.0,0.00032036,2]
[425794812,1781898648000,-10091.90896854,0.000321,2]
[425794811,1781898648000,-152.0,0.00032087,3]
[425794810,1781898648000,-534.0,0.0003204,2]
[425794802,1781898648000,-162.0,0.00031934,30]
[425794807,1781898648000,-800.0,0.00032,2]
[425794815,1781898648000,-151.0,0.00032117,2]
[425794825,1781898648000,-173.86,0.00032185,2]
[425794814,1781898648000,-151.0,0.00032117,2]
[425794818,1781898648000,-4562.06476284,0.00032139,7]
[425794848,1781898648000,-198.12906459,0.00032427,2]
[425794840,1781898648000,-350.0,0.00032425,2]
[425794893,1781898648000,-500.0,0.00032876,120]
[425794880,1781898648000,-637.69700445,0.00032873,2]
[425794879,1781898648000,-204.0,0.0003286,30]
[425794877,1781898648000,-781.33996109,0.00032855,2]
[425794884,1781898648000,-500.0,0.00032876,120]
[425794887,1781898648000,-500.0,0.00032876,120]
[425794886,1781898648000,-500.0,0.00032876,120]
[425794885,1781898648000,-500.0,0.00032876,120]
[425794890,1781898648000,-500.0,0.00032876,120]
[425794892,1781898648000,-500.0,0.00032876,120]
[425794888,1781898648000,-500.0,0.00032876,120]
[425794891,1781898648000,-500.0,0.00032876,120]
[425794895,1781898648000,-674.91,0.00032877,2]
[425794894,1781898648000,-150.0,0.00032876,2]
[425794889,1781898648000,-500.0,0.00032876,120]
[425794897,1781898648000,-150.0,0.00032877,2]
[425794896,1781898648000,-167.88420085,0.00032877,2]
[425794899,1781898648000,-500.0,0.00032877,2]
[425794898,1781898648000,-500.0,0.00032877,2]
[425794903,1781898648000,-174.0,0.00032877,60]
[425794904,1781898648000,-181.0,0.00032877,60]
[425794901,1781898648000,-247.17,0.00032877,16]
[425794900,1781898648000,-434.61131837,0.00032877,2]
[425794902,1781898648000,-150.0,0.00032877,60]
[425794849,1781898648000,-218.02035311,0.00032427,2]
[425794905,1781898648000,-157.141913,0.00032877,120]
[425794876,1781898648000,-280.03725111,0.00032855,2]
[425794875,1781898648000,-233.5188934,0.00032855,2]
[425794878,1781898648000,-151.0,0.00032855,2]
[425794883,1781898648000,-500.0,0.00032876,120]
[425794851,1781898648000,-273.0,0.00032456,2]
[425794852,1781898648000,-273.0,0.00032456,2]
[425794850,1781898648000,-178.77574177,0.00032431,2]
[425794857,1781898648000,-800.0,0.000325,2]
[425794854,1781898648000,-273.0,0.00032456,2]
[425794853,1781898648000,-273.0,0.00032456,2]
[425794855,1781898648000,-473.36582919,0.00032456,2]
[425794856,1781898648000,-273.0,0.00032456,2]
[425794859,1781898648000,-316.0,0.000325,2]
[425794874,1781898648000,-16214.0191034,0.00032806,2]
[425794860,1781898648000,-201.0,0.000325,2]
[425794861,1781898648000,-310.0,0.000325,2]
[425794862,1781898648000,-4238.81766738,0.00032508,7]
[425794863,1781898648000,-371.14107545,0.00032517,2]
[425794858,1781898648000,-800.0,0.000325,2]
[425794882,1781898648000,-500.0,0.00032876,120]
[425794865,1781898648000,-150.0,0.00032562,2]
[425794867,1781898648000,-200.0,0.00032584,2]
[425794866,1781898648000,-3174.98495886,0.00032576,7]
[425794870,1781898648000,-25898.2104098,0.00032649,2]
[425794871,1781898648000,-1673.17989905,0.00032652,7]
[425794868,1781898648000,-464.593535,0.00032593,2]
[425794869,1781898648000,-1835.35873724,0.00032606,7]
[425794872,1781898648000,-10091.90896854,0.000328,2]
[425794873,1781898648000,-436.62,0.000328,7]
[425794864,1781898648000,-150.92644566,0.00032548,7]
[425794881,1781898648000,-500.0,0.00032876,120]
[425794954,1781898649000,-4190.0,0.00033,6]
[425794943,1781898649000,-150.0,0.00032955,2]
[425794944,1781898649000,-150.0,0.00032955,2]
[425794940,1781898649000,-150.0,0.00032955,2]
[425794938,1781898649000,-150.0,0.00032955,2]
[425794939,1781898649000,-150.0,0.00032955,2]
[425794936,1781898649000,-573.56,0.00032945,2]
[425794942,1781898649000,-150.0,0.00032955,2]
[425794937,1781898649000,-248.57668789,0.00032955,2]
[425794946,1781898649000,-500.0,0.00032955,2]
[425794941,1781898649000,-150.48387042,0.00032955,2]
[425794947,1781898649000,-500.0,0.00032955,2]
[425794956,1781898649000,-169.13,0.00033,30]
[425794948,1781898649000,-500.0,0.00032955,2]
[425794951,1781898649000,-500.0,0.00032999,120]
[425794949,1781898649000,-200.0,0.00032966,2]
[425794945,1781898649000,-501.62409538,0.00032955,2]
[425794952,1781898649000,-500.0,0.00032999,120]
[425794953,1781898649000,-12474.70576625,0.00033,7]
[425794955,1781898649000,-800.0,0.00033,2]
[425794961,1781898649000,-22499.96,0.00033,2]
[425794963,1781898649000,-22500.0,0.00033,2]
[425794959,1781898649000,-15000.0,0.00033,2]
[425794957,1781898649000,-559.23594266,0.00033,30]
[425794964,1781898649000,-800.0,0.00033,2]
[425794935,1781898649000,-151.0,0.00032945,2]
[425794950,1781898649000,-319.0,0.00032987,30]
[425794932,1781898649000,-151.0,0.00032939,2]
[425794907,1781898649000,-849.56608415,0.00032887,2]
[425794934,1781898649000,-573.56,0.00032942,2]
[425794915,1781898649000,-934.0,0.00032919,2]
[425794906,1781898649000,-529.84,0.00032877,50]
[425794916,1781898649000,-6081.0,0.00032919,2]
[425794908,1781898649000,-29314.54091,0.000329,2]
[425794911,1781898649000,-1360.0,0.00032919,2]
[425794913,1781898649000,-1229.0,0.00032919,2]
[425794910,1781898649000,-383.0,0.00032919,2]
[425794909,1781898649000,-3560.0,0.00032919,2]
[425794914,1781898649000,-150.0,0.00032919,2]
[425794912,1781898649000,-1276.0,0.00032919,2]
[425794917,1781898649000,-151.0,0.00032932,30]
[425794918,1781898649000,-155.0,0.00032932,30]
[425794919,1781898649000,-406.0,0.00032932,30]
[425794921,1781898649000,-159.0,0.00032932,30]
[425794920,1781898649000,-485.0,0.00032932,30]
[425794922,1781898649000,-158.0,0.00032932,30]
[425794926,1781898649000,-337.0,0.00032934,30]
[425794924,1781898649000,-156.0,0.00032932,30]
[425794923,1781898649000,-314.0,0.00032932,30]
[425794928,1781898649000,-339.0,0.00032934,30]
[425794925,1781898649000,-162.0,0.00032934,30]
[425794927,1781898649000,-154.0,0.00032934,30]
[425794929,1781898649000,-151.0,0.00032939,2]
[425794930,1781898649000,-573.56,0.00032939,2]
[425794933,1781898649000,-151.0,0.00032942,2]
[425794931,1781898649000,-151.0,0.00032939,2]
[425794965,1781898649000,-1404.43,0.00033,2]
[425795003,1781898649000,-436.62,0.000333,7]
[425794962,1781898649000,-12500.0,0.00033,2]
[425794997,1781898649000,-10055.2116072,0.00033244,2]
[425794998,1781898649000,-1103.5331412,0.00033245,2]
[425794992,1781898649000,-151.0,0.00033236,2]
[425794996,1781898649000,-1144.4506559,0.0003324,2]
[425794994,1781898649000,-150.0,0.00033238,30]
[425795000,1781898649000,-4336.51,0.00033248,2]
[425795002,1781898649000,-155.660658,0.00033298,120]
[425795007,1781898649000,-305.23,0.0003343,2]
[425795004,1781898649000,-3113.0,0.00033328,10]
[425795005,1781898649000,-156.53574,0.00033364,120]
[425795013,1781898649000,-800.0,0.000335,2]
[425795006,1781898649000,-10091.90896854,0.000334,2]
[425795008,1781898649000,-793.08859096,0.00033446,2]
[425795009,1781898649000,-10000.0,0.00033467,2]
[425795011,1781898649000,-353.0302161,0.00033476,2]
[425795010,1781898649000,-2178.8148285,0.00033468,2]
[425795012,1781898649000,-182.48307286,0.00033481,2]
[425795014,1781898649000,-849.56608415,0.00033513,2]
[425795017,1781898649000,-500.0,0.00033669,120]
[425795016,1781898649000,-14086.67934133,0.000336,2]
[425795015,1781898649000,-1121.77964963,0.0003353,7]
[425795018,1781898649000,-231014.0,0.0003367,30]
[425795021,1781898649000,-43033.30897752,0.000337,7]
[425795020,1781898649000,-4121.45,0.000337,2]
[425795019,1781898649000,-10091.90896854,0.000337,2]
[425794993,1781898649000,-781.33996109,0.00033236,2]
[425794995,1781898649000,-150.0,0.00033238,30]
[425794999,1781898649000,-1228.9211229,0.00033245,2]
[425794990,1781898649000,-242.15909246,0.00033236,2]
[425794958,1781898649000,-5532.51,0.00033,2]
[425794970,1781898649000,-5000.0,0.00033047,2]
[425794971,1781898649000,-5000.0,0.00033047,2]
[425794973,1781898649000,-5000.0,0.00033047,2]
[425794968,1781898649000,-350.0,0.00033029,2]
[425794972,1781898649000,-5000.0,0.00033047,2]
[425795001,1781898649000,-7635.33,0.00033263,2]
[425794974,1781898649000,-15000.0,0.0003307,2]
[425794975,1781898649000,-5041.12613893,0.00033087,2]
[425794966,1781898649000,-1127.01,0.00033,2]
[425794967,1781898649000,-501.0,0.00033011,8]
[425794976,1781898649000,-12500.0,0.00033088,2]
[425794977,1781898649000,-22500.0,0.00033088,2]
[425794969,1781898649000,-5037.3239473,0.00033047,2]
[425794979,1781898649000,-15000.0,0.0003314,2]
[425794989,1781898649000,-10000.0,0.00033233,2]
[425794991,1781898649000,-290.3986294,0.00033236,2]
[425794984,1781898649000,-3535.48,0.00033175,2]
[425794986,1781898649000,-273.0,0.00033177,2]
[425794982,1781898649000,-186.69,0.00033169,2]
[425794988,1781898649000,-273.0,0.00033177,2]
[425794960,1781898649000,-10000.0,0.00033,2]
[425794978,1781898649000,-10091.90896854,0.000331,2]
[425794981,1781898649000,-4802.166,0.00033163,2]
[425794985,1781898649000,-273.0,0.00033177,2]
[425794980,1781898649000,-500.0,0.0003316,25]
[425794987,1781898649000,-273.0,0.00033177,2]
[425794983,1781898649000,-12500.0,0.00033175,2]
[425795042,1781898650000,-250.0,0.00033753,32]
[425795034,1781898650000,-385.60833701,0.00033705,2]
[425795035,1781898650000,-341.25468988,0.00033705,2]
[425795032,1781898650000,-385.19495785,0.00033705,2]
[425795031,1781898650000,-364.61911601,0.00033705,2]
[425795029,1781898650000,-13756.95147664,0.000337,7]
[425795025,1781898650000,-292.805257,0.00027397,10]
[425795027,1781898650000,-2074.75709197,0.000283,2]
[425795028,1781898650000,-500.0,0.00029308,120]
[425795026,1781898650000,-38451.074743,0.00027397,10]
[425795033,1781898650000,-300.94921922,0.00033705,2]